fUSD/lending_fUSD_20260527
["ID","MTS","AMOUNT","RATE_DAILY","PERIOD"]
[423126299,1779870551000,-164.15608081,0.0001379,2]
[423126294,1779870551000,-500.0,0.0001376,2]
[423126296,1779870551000,-150.0,0.00013773,2]
[423126297,1779870551000,-164.15608081,0.00013775,2]
[423126300,1779870551000,-164.15608081,0.00013806,2]
[423126293,1779870551000,-164.15608081,0.0001376,2]
[423126295,1779870551000,-150.0,0.00013765,2]
[423126287,1779870551000,-150.0,0.0001371,2]
[423126286,1779870551000,-150.0,0.00013703,2]
[423126288,1779870551000,-164.15608081,0.00013715,2]
[423126284,1779870551000,-150.0,0.00013702,2]
[423126289,1779870551000,-164.15608081,0.0001373,2]
[423126290,1779870551000,-150.0,0.00013745,2]
[423126292,1779870551000,-150.0,0.0001376,2]
[423126291,1779870551000,-164.15608081,0.00013745,2]
[423126318,1779870552000,-150.0,0.00013916,2]
[423126316,1779870552000,-150.0,0.00013916,2]
[423126315,1779870552000,-164.15608081,0.00013912,2]
[423126317,1779870552000,-150.0,0.00013916,2]
[423126314,1779870552000,-164.15608081,0.00013896,2]
[423126313,1779870552000,-150.0,0.00013896,2]
[423126311,1779870552000,-164.15608081,0.00013881,2]
[423126312,1779870552000,-300.14365949,0.00013895,2]
[423126309,1779870552000,-150.0,0.00013873,2]
[423126306,1779870552000,-150.0,0.00013844,2]
[423126305,1779870552000,-164.15608081,0.00013836,2]
[423126307,1779870552000,-164.15608081,0.00013851,2]
[423126310,1779870552000,-150.0,0.00013876,2]
[423126308,1779870552000,-164.15608081,0.00013866,2]
[423126319,1779870552000,-150.0,0.00013916,2]
[423126321,1779870552000,-150.0,0.00013932,2]
[423126320,1779870552000,-164.15608081,0.00013927,2]
[423126334,1779870552000,-5022.56852896,0.0001399,2]
[423126333,1779870552000,-1200.0,0.00013989,2]
[423126331,1779870552000,-150.0,0.00013987,2]
[423126330,1779870552000,-164.15608081,0.00013987,2]
[423126329,1779870552000,-150.0,0.00013987,2]
[423126332,1779870552000,-170.656,0.00013989,2]
[423126328,1779870552000,-150.0,0.00013987,2]
[423126325,1779870552000,-150.0,0.00013965,2]
[423126326,1779870552000,-164.15608081,0.00013972,2]
[423126323,1779870552000,-164.15608081,0.00013957,2]
[423126324,1779870552000,-150.0,0.00013959,2]
[423126322,1779870552000,-164.15608081,0.00013942,2]
[423126327,1779870552000,-150.0,0.00013987,2]
[423126344,1779870557000,-150.0,0.00014043,2]
[423126349,1779870557000,-164.15608081,0.00014078,2]
[423126350,1779870557000,-150.0,0.00014087,2]
[423126348,1779870557000,-164.15608081,0.00014063,2]
[423126345,1779870557000,-150.0,0.00014044,2]
[423126347,1779870557000,-150.0,0.00014059,2]
[423126346,1779870557000,-164.15608081,0.00014048,2]
[423126343,1779870557000,-500.0,0.00014034,2]
[423126337,1779870557000,-969.69792251,0.00014,2]
[423126340,1779870557000,-164.15608081,0.00014017,2]
[423126341,1779870557000,-150.0,0.00014033,2]
[423126339,1779870557000,-164.15608081,0.00014002,2]
[423126338,1779870557000,-150.0,0.00014001,2]
[423126335,1779870557000,-9117.217732,0.0001399,2]
[423126336,1779870557000,-22746.91961331,0.0001399,2]
[423126351,1779870557000,-164.15608081,0.00014093,2]
[423126342,1779870557000,-164.15608081,0.00014033,2]
[423126352,1779870557000,-150.0,0.00014098,2]
[423126355,1779870557000,-164.15608081,0.00014108,2]
[423126353,1779870557000,-150.0,0.00014101,2]
[423126371,1779870557000,-150.0,0.00014201,2]
[423126369,1779870557000,-164.15608081,0.00014184,2]
[423126370,1779870557000,-164.15608081,0.00014199,2]
[423126368,1779870557000,-500.0,0.00014184,2]
[423126365,1779870557000,-150.0,0.00014169,2]
[423126366,1779870557000,-164.15608081,0.00014169,2]
[423126364,1779870557000,-150.0,0.00014154,2]
[423126367,1779870557000,-150.0,0.00014173,2]
[423126363,1779870557000,-164.15608081,0.00014154,2]
[423126362,1779870557000,-250.0,0.00014154,2]
[423126361,1779870557000,-164.15608081,0.00014139,2]
[423126359,1779870557000,-150.0,0.0001413,2]
[423126360,1779870557000,-150.0,0.0001413,2]
[423126358,1779870557000,-150.0,0.0001413,2]
[423126372,1779870557000,-150.0,0.00014209,2]
[423126357,1779870557000,-150.0,0.0001413,2]
[423126356,1779870557000,-164.15608081,0.00014123,2]
[423126354,1779870557000,-200.0,0.00014101,2]
[423126376,1779870558000,-150.0,0.00014237,2]
[423126373,1779870558000,-164.15608081,0.00014214,2]
[423126374,1779870558000,-150.0,0.00014216,2]
[423126377,1779870558000,-137.60670391,0.00014245,2]
[423126375,1779870558000,-164.15608081,0.00014229,2]
[423126398,1779870565000,-164.15608081,0.00014366,2]
[423126395,1779870565000,-150.0,0.00014344,2]
[423126396,1779870565000,-150.0,0.00014344,2]
[423126394,1779870565000,-150.0,0.00014344,2]
[423126391,1779870565000,-150.0,0.0001432,2]
[423126393,1779870565000,-150.0,0.00014344,2]
[423126392,1779870565000,-164.15608081,0.00014335,2]
[423126390,1779870565000,-164.15608081,0.0001432,2]
[423126388,1779870565000,-164.15608081,0.00014305,2]
[423126389,1779870565000,-500.0,0.00014308,2]
[423126387,1779870565000,-150.0,0.00014305,2]
[423126385,1779870565000,-164.15608081,0.0001429,2]
[423126384,1779870565000,-1013.84,0.00014279,2]
[423126383,1779870565000,-164.15608081,0.00014275,2]
[423126382,1779870565000,-150.0,0.00014273,2]
[423126381,1779870565000,-150.0,0.00014265,2]
[423126380,1779870565000,-164.15608081,0.0001426,2]
[423126379,1779870565000,-150.0,0.00014258,2]
[423126378,1779870565000,-26.5493769,0.00014245,2]
[423126397,1779870565000,-164.15608081,0.00014351,2]
[423126386,1779870565000,-150.0,0.00014301,2]
[423126401,1779870565000,-164.15608081,0.00014381,2]
[423126399,1779870565000,-150.0,0.00014373,2]
[423126417,1779870565000,-150.0,0.00014487,2]
[423126400,1779870565000,-150.0,0.00014376,2]
[423126421,1779870565000,-200.0,0.000145,5]
[423126422,1779870565000,-164.15608081,0.00014502,2]
[423126420,1779870565000,-150.0,0.00014487,2]
[423126419,1779870565000,-164.15608081,0.00014487,2]
[423126423,1779870565000,-150.0,0.00014509,2]
[423126418,1779870565000,-150.0,0.00014487,2]
[423126416,1779870565000,-150.0,0.00014487,2]
[423126412,1779870565000,-164.15608081,0.00014441,2]
[423126413,1779870565000,-164.15608081,0.00014456,2]
[423126414,1779870565000,-164.15608081,0.00014472,2]
[423126411,1779870565000,-150.0,0.00014441,2]
[423126410,1779870565000,-150.0,0.00014431,2]
[423126407,1779870565000,-150.0,0.00014415,2]
[423126409,1779870565000,-150.0,0.0001443,2]
[423126408,1779870565000,-164.15608081,0.00014426,2]
[423126405,1779870565000,-433.2,0.00014412,2]
[423126406,1779870565000,-19482.35,0.00014412,2]
[423126404,1779870565000,-164.15608081,0.00014411,2]
[423126402,1779870565000,-150.0,0.00014387,2]
[423126403,1779870565000,-164.15608081,0.00014396,2]
[423126415,1779870565000,-150.0,0.00014472,2]
[423126439,1779870566000,-400.0,0.000146,5]
[423126440,1779870566000,-150.0,0.00014601,2]
[423126441,1779870566000,-164.15608081,0.00014608,2]
[423126443,1779870566000,-164.15608081,0.00014623,2]
[423126447,1779870566000,-150.0,0.00014646,2]
[423126445,1779870566000,-164.15608081,0.00014638,2]
[423126444,1779870566000,-150.0,0.00014629,2]
[423126446,1779870566000,-150.0,0.00014644,2]
[423126448,1779870566000,-164.15608081,0.00014653,2]
[423126438,1779870566000,-150.0,0.00014598,2]
[423126442,1779870566000,-165.92,0.00014609,2]
[423126436,1779870566000,-500.0,0.00014582,2]
[423126427,1779870566000,-150.0,0.00014542,2]
[423126435,1779870566000,-164.15608081,0.00014578,2]
[423126433,1779870566000,-164.15608081,0.00014562,2]
[423126434,1779870566000,-150.0,0.00014578,2]
[423126431,1779870566000,-150.0,0.00014558,2]
[423126432,1779870566000,-150.0,0.00014558,2]
[423126428,1779870566000,-164.15608081,0.00014547,2]
[423126430,1779870566000,-150.0,0.00014558,2]
[423126429,1779870566000,-150.0,0.00014558,2]
[423126426,1779870566000,-164.15608081,0.00014532,2]
[423126425,1779870566000,-164.15608081,0.00014517,2]
[423126424,1779870566000,-150.0,0.00014515,2]
[423126437,1779870566000,-164.15608081,0.00014593,2]
[423126450,1779870566000,-164.15608081,0.00014668,2]
[423126466,1779870566000,-150.0,0.00014772,2]
[423126451,1779870566000,-164.15608081,0.00014684,2]
[423126476,1779870566000,-150.0,0.0001482,2]
[423126474,1779870566000,-150.0,0.00014815,2]
[423126475,1779870566000,-164.15608081,0.0001482,2]
[423126473,1779870566000,-164.15608081,0.00014805,2]
[423126472,1779870566000,-800.0,0.000148,5]
[423126471,1779870566000,-164.15608081,0.0001479,2]
[423126469,1779870566000,-255.0,0.00014779,2]
[423126470,1779870566000,-150.0,0.00014782,2]
[423126467,1779870566000,-150.0,0.00014772,2]
[423126468,1779870566000,-164.15608081,0.00014774,2]
[423126463,1779870566000,-150.0,0.00014764,2]
[423126465,1779870566000,-150.0,0.00014772,2]
[423126461,1779870566000,-164.15608081,0.00014744,2]
[423126453,1779870566000,-164.15608081,0.00014699,2]
[423126452,1779870566000,-150.0,0.00014687,2]
[423126454,1779870566000,-600.0,0.000147,5]
[423126464,1779870566000,-150.0,0.00014772,2]
[423126457,1779870566000,-150.0,0.00014714,2]
[423126455,1779870566000,-150.0,0.00014701,2]
[423126458,1779870566000,-164.15608081,0.00014714,2]
[423126459,1779870566000,-164.15608081,0.00014729,2]
[423126460,1779870566000,-150.0,0.00014729,2]
[423126462,1779870566000,-164.15608081,0.00014759,2]
[423126456,1779870566000,-150.0,0.00014709,2]
[423126449,1779870566000,-150.0,0.00014653,2]
[423126480,1779870567000,-164.15608081,0.0001485,2]
[423126477,1779870567000,-164.15608081,0.00014835,2]
[423126478,1779870567000,-150.0,0.00014844,2]
[423126479,1779870567000,-150.0,0.0001485,2]
[423126481,1779870567000,-500.0,0.00014856,2]
[423126484,1779870567000,-150.0,0.00014875,2]
[423126483,1779870567000,-164.15608081,0.00014865,2]
[423126486,1779870567000,-164.15608081,0.00014895,2]
[423126485,1779870567000,-164.15608081,0.0001488,2]
[423126487,1779870567000,-1280.37774827,0.000149,2]
[423126482,1779870567000,-150.0,0.00014858,2]
[423126508,1779870632000,-150.0,0.00014899,2]
[423126509,1779870632000,-4169.63225173,0.000149,2]
[423126512,1779870632000,-288.46014156,0.000149,2]
[423126514,1779870632000,-623.00638132,0.000149,2]
[423126520,1779870632000,-1563.79537795,0.000149,2]
[423126510,1779870632000,-1000.0,0.000149,5]
[423126507,1779870632000,-1200.0,0.00014899,2]
[423126516,1779870632000,-196.64301011,0.000149,2]
[423126518,1779870632000,-823.06940321,0.000149,2]
[423126535,1779870632000,-811.1,0.00014921,2]
[423126511,1779870632000,-8239.42837147,0.000149,2]
[423126505,1779870632000,-300.0,0.00014899,2]
[423126502,1779870632000,-166.66,0.0001423,2]
[423126496,1779870632000,-297.52999999,0.00014048,2]
[423126501,1779870632000,-371.80999094,0.0001413,2]
[423126497,1779870632000,-2148.64225144,0.0001413,2]
[423126504,1779870632000,-166.66,0.00014761,2]
[423126498,1779870632000,-464.92256561,0.0001413,2]
[423126499,1779870632000,-847.09544021,0.0001413,2]
[423126503,1779870632000,-166.66,0.00014495,2]
[423126538,1779870632000,-150.0,0.00014931,2]
[423126495,1779870632000,-76.68000001,0.00014048,2]
[423126494,1779870632000,-166.66,0.00013964,2]
[423126493,1779870632000,-166.66,0.00013699,2]
[423126500,1779870632000,-2218.05037554,0.0001413,2]
[423126537,1779870632000,-164.15608081,0.00014926,2]
[423126582,1779870632000,-166.96310002,0.00014986,2]
[423126525,1779870632000,-490.87845049,0.000149,2]
[423126533,1779870632000,-150.0,0.00014918,2]
[423126585,1779870632000,-158.72318336,0.00014986,2]
[423126584,1779870632000,-164.15608081,0.00014986,2]
[423126583,1779870632000,-151.15794653,0.00014986,2]
[423126577,1779870632000,-222.85455466,0.00014986,2]
[423126579,1779870632000,-151.62598739,0.00014986,2]
[423126573,1779870632000,-279.43620478,0.00014986,2]
[423126575,1779870632000,-152.13755173,0.00014986,2]
[423126557,1779870632000,-491.9,0.00014959,2]
[423126570,1779870632000,-152.47160633,0.00014986,2]
[423126568,1779870632000,-150.50757141,0.00014986,2]
[423126553,1779870632000,-10579.0,0.00014959,2]
[423126586,1779870632000,-6847.57641326,0.00014989,2]
[423126565,1779870632000,-151.84740648,0.00014986,2]
[423126550,1779870632000,-1433.0,0.00014959,2]
[423126531,1779870632000,-150.0,0.00014915,2]
[423126541,1779870632000,-164.15608081,0.00014941,2]
[423126529,1779870632000,-164.15608081,0.00014911,2]
[423126543,1779870632000,-150.0,0.00014943,2]
[423126527,1779870632000,-150.0,0.00014901,2]
[423126548,1779870632000,-6876.0,0.00014959,2]
[423126559,1779870632000,-164.15608081,0.00014971,2]
[423126561,1779870632000,-248.56,0.00014985,2]
[423126563,1779870632000,-332.02,0.00014985,2]
[423126545,1779870632000,-164.15608081,0.00014956,2]
[423126620,1779870638000,-720.34,0.00014999,2]
[423126604,1779870638000,-720.34,0.00014999,2]
[423126610,1779870638000,-720.34,0.00014999,2]
[423126609,1779870638000,-720.34,0.00014999,2]
[423126602,1779870638000,-500.0,0.00014999,2]
[423126605,1779870638000,-720.34,0.00014999,2]
[423126601,1779870638000,-382.38269634,0.00014999,2]
[423126606,1779870638000,-720.34,0.00014999,2]
[423126603,1779870638000,-500.0,0.00014999,2]
[423126608,1779870638000,-720.34,0.00014999,2]
[423126600,1779870638000,-500.0,0.00014999,2]
[423126598,1779870638000,-500.0,0.00014999,2]
[423126593,1779870638000,-500.0,0.00014989,2]
[423126591,1779870638000,-2421.15563036,0.0001413,2]
[423126590,1779870638000,-3017.79422518,0.0001413,2]
[423126589,1779870638000,-4066.81771332,0.0001413,2]
[423126597,1779870638000,-500.0,0.00014999,2]
[423126599,1779870638000,-500.0,0.00014999,2]
[423126596,1779870638000,-500.0,0.00014999,2]
[423126595,1779870638000,-728.72845236,0.0001499,2]
[423126594,1779870638000,-728.72845236,0.0001499,2]
[423126621,1779870638000,-500.0,0.00014999,2]
[423126592,1779870638000,-13546.9701435,0.00014989,2]
[423126612,1779870638000,-720.34,0.00014999,2]
[423126607,1779870638000,-720.34,0.00014999,2]
[423126615,1779870638000,-720.34,0.00014999,2]
[423126638,1779870638000,-500.0,0.00014999,2]
[423126611,1779870638000,-720.34,0.00014999,2]
[423126637,1779870638000,-500.0,0.00014999,2]
[423126639,1779870638000,-500.0,0.00014999,2]
[423126635,1779870638000,-500.0,0.00014999,2]
[423126629,1779870638000,-527.69868372,0.00014999,2]
[423126628,1779870638000,-500.0,0.00014999,2]
[423126632,1779870638000,-500.0,0.00014999,2]
[423126630,1779870638000,-500.0,0.00014999,2]
[423126634,1779870638000,-500.0,0.00014999,2]
[423126626,1779870638000,-500.0,0.00014999,2]
[423126625,1779870638000,-500.0,0.00014999,2]
[423126636,1779870638000,-500.0,0.00014999,2]
[423126631,1779870638000,-500.0,0.00014999,2]
[423126627,1779870638000,-500.0,0.00014999,2]
[423126614,1779870638000,-720.34,0.00014999,2]
[423126618,1779870638000,-720.34,0.00014999,2]
[423126617,1779870638000,-720.34,0.00014999,2]
[423126616,1779870638000,-720.34,0.00014999,2]
[423126613,1779870638000,-720.34,0.00014999,2]
[423126624,1779870638000,-500.0,0.00014999,2]
[423126622,1779870638000,-500.0,0.00014999,2]
[423126633,1779870638000,-500.0,0.00014999,2]
[423126623,1779870638000,-500.0,0.00014999,2]
[423126619,1779870638000,-720.34,0.00014999,2]
[423126668,1779870639000,-570.76297312,0.00014999,2]
[423126669,1779870639000,-500.0,0.00014999,2]
[423126661,1779870639000,-165.42139901,0.00014999,2]
[423126671,1779870639000,-500.0,0.00014999,2]
[423126665,1779870639000,-500.0,0.00014999,2]
[423126672,1779870639000,-570.76297312,0.00014999,2]
[423126667,1779870639000,-500.0,0.00014999,2]
[423126670,1779870639000,-570.76297312,0.00014999,2]
[423126684,1779870639000,-570.76297312,0.00014999,2]
[423126679,1779870639000,-570.76297312,0.00014999,2]
[423126682,1779870639000,-500.0,0.00014999,2]
[423126674,1779870639000,-570.76297312,0.00014999,2]
[423126685,1779870639000,-570.76297312,0.00014999,2]
[423126675,1779870639000,-639.38254777,0.00014999,2]
[423126673,1779870639000,-500.0,0.00014999,2]
[423126680,1779870639000,-500.0,0.00014999,2]
[423126678,1779870639000,-570.76297312,0.00014999,2]
[423126660,1779870639000,-500.0,0.00014999,2]
[423126677,1779870639000,-500.0,0.00014999,2]
[423126676,1779870639000,-570.76297312,0.00014999,2]
[423126664,1779870639000,-570.76297312,0.00014999,2]
[423126647,1779870639000,-500.0,0.00014999,2]
[423126662,1779870639000,-441.88172007,0.00014999,2]
[423126683,1779870639000,-570.76297312,0.00014999,2]
[423126640,1779870639000,-500.0,0.00014999,2]
[423126644,1779870639000,-500.0,0.00014999,2]
[423126643,1779870639000,-500.0,0.00014999,2]
[423126641,1779870639000,-500.0,0.00014999,2]
[423126645,1779870639000,-500.0,0.00014999,2]
[423126646,1779870639000,-500.0,0.00014999,2]
[423126642,1779870639000,-500.0,0.00014999,2]
[423126658,1779870639000,-500.0,0.00014999,2]
[423126663,1779870639000,-500.0,0.00014999,2]
[423126648,1779870639000,-493.28751678,0.00014999,2]
[423126653,1779870639000,-500.0,0.00014999,2]
[423126649,1779870639000,-500.0,0.00014999,2]
[423126650,1779870639000,-542.38930879,0.00014999,2]
[423126651,1779870639000,-308.11324502,0.00014999,2]
[423126654,1779870639000,-500.0,0.00014999,2]
[423126655,1779870639000,-500.0,0.00014999,2]
[423126657,1779870639000,-500.0,0.00014999,2]
[423126652,1779870639000,-500.0,0.00014999,2]
[423126656,1779870639000,-286.86739354,0.00014999,2]
[423126659,1779870639000,-588.97628246,0.00014999,2]
[423126681,1779870639000,-570.76297312,0.00014999,2]
[423126666,1779870639000,-570.76297312,0.00014999,2]
[423126687,1779870639000,-570.76297312,0.00014999,2]
[423126724,1779870639000,-570.76297312,0.00014999,2]
[423126714,1779870639000,-570.76297312,0.00014999,2]
[423126717,1779870639000,-570.76297312,0.00014999,2]
[423126716,1779870639000,-570.76297312,0.00014999,2]
[423126718,1779870639000,-570.76297312,0.00014999,2]
[423126713,1779870639000,-570.76297312,0.00014999,2]
[423126721,1779870639000,-570.76297312,0.00014999,2]
[423126723,1779870639000,-570.76297312,0.00014999,2]
[423126725,1779870639000,-570.76297312,0.00014999,2]
[423126707,1779870639000,-570.76297312,0.00014999,2]
[423126715,1779870639000,-570.76297312,0.00014999,2]
[423126722,1779870639000,-570.76297312,0.00014999,2]
[423126727,1779870639000,-1246994.31764099,0.00015,2]
[423126726,1779870639000,-570.76297312,0.00014999,2]
[423126728,1779870639000,-744.8,0.00015,2]
[423126729,1779870639000,-750.0,0.00015,2]
[423126731,1779870639000,-301.12,0.00015,2]
[423126730,1779870639000,-75000.00000002,0.00015,2]
[423126732,1779870639000,-4670.07782431,0.00015,2]
[423126697,1779870639000,-570.76297312,0.00014999,2]
[423126719,1779870639000,-570.76297312,0.00014999,2]
[423126711,1779870639000,-570.76297312,0.00014999,2]
[423126720,1779870639000,-570.76297312,0.00014999,2]
[423126701,1779870639000,-570.76297312,0.00014999,2]
[423126686,1779870639000,-570.76297312,0.00014999,2]
[423126706,1779870639000,-570.76297312,0.00014999,2]
[423126698,1779870639000,-570.76297312,0.00014999,2]
[423126688,1779870639000,-570.76297312,0.00014999,2]
[423126689,1779870639000,-570.76297312,0.00014999,2]
[423126694,1779870639000,-570.76297312,0.00014999,2]
[423126693,1779870639000,-570.76297312,0.00014999,2]
[423126691,1779870639000,-570.76297312,0.00014999,2]
[423126690,1779870639000,-570.76297312,0.00014999,2]
[423126695,1779870639000,-570.76297312,0.00014999,2]
[423126696,1779870639000,-570.76297312,0.00014999,2]
[423126692,1779870639000,-570.76297312,0.00014999,2]
[423126709,1779870639000,-570.76297312,0.00014999,2]
[423126708,1779870639000,-570.76297312,0.00014999,2]
[423126699,1779870639000,-570.76297312,0.00014999,2]
[423126710,1779870639000,-570.76297312,0.00014999,2]
[423126702,1779870639000,-570.76297312,0.00014999,2]
[423126703,1779870639000,-570.76297312,0.00014999,2]
[423126705,1779870639000,-570.76297312,0.00014999,2]
[423126712,1779870639000,-570.76297312,0.00014999,2]
[423126700,1779870639000,-570.76297312,0.00014999,2]
[423126704,1779870639000,-570.76297312,0.00014999,2]
[423126743,1779870640000,-255.0,0.00016031,2]
[423126753,1779870640000,-433.0,0.00017253,2]
[423126749,1779870640000,-1767.93,0.00016457,2]
[423126754,1779870640000,-500.0,0.00017279,2]
[423126750,1779870640000,-165.92,0.00016538,2]
[423126748,1779870640000,-1680.0,0.00016389,2]
[423126752,1779870640000,-165.92,0.00017021,2]
[423126745,1779870640000,-1767.93,0.00016075,2]
[423126751,1779870640000,-1767.93,0.0001684,2]
[423126744,1779870640000,-165.92,0.00016056,2]
[423126734,1779870640000,-173.03,0.00015,2]
[423126742,1779870640000,-1767.93,0.00015692,2]
[423126739,1779870640000,-1767.93,0.00015309,2]
[423126741,1779870640000,-7027.88,0.0001559,2]
[423126740,1779870640000,-165.92,0.00015574,2]
[423126736,1779870640000,-166.66,0.00015026,2]
[423126738,1779870640000,-628.80003031,0.0001513,2]
[423126737,1779870640000,-165.92,0.00015092,2]
[423126735,1779870640000,-199.0,0.00015,2]
[423126733,1779870640000,-2673132.85093846,0.00015,2]
[423126756,1779870640000,-580.73,0.00017548,2]
[423126746,1779870640000,-300.0,0.00016389,2]
[423126755,1779870640000,-174.01,0.00017492,2]
[423126747,1779870640000,-250.0,0.00016389,2]
[423126757,1779870640000,-8239.42837146,0.00017971,2]
[423126765,1779870640000,-3292.0,0.00019831,2]
[423126779,1779870640000,-580.73,0.00024129,2]
[423126781,1779870640000,-7947.35,0.00024174,2]
[423126780,1779870640000,-371.34,0.00024174,2]
[423126776,1779870640000,-208.10395352,0.000235,2]
[423126778,1779870640000,-8239.42837146,0.00024114,2]
[423126774,1779870640000,-174.01,0.00022095,2]
[423126777,1779870640000,-174.01,0.00023936,2]
[423126769,1779870640000,-8239.42837146,0.00021043,2]
[423126768,1779870640000,-174.01,0.00020254,2]
[423126772,1779870640000,-5000.0,0.00021918,2]
[423126775,1779870640000,-174.01,0.00023016,2]
[423126771,1779870640000,-1721.0,0.00021814,2]
[423126760,1779870640000,-174.01,0.00018413,2]
[423126767,1779870640000,-26484.11,0.0002,2]
[423126758,1779870640000,-2351.0,0.00018028,2]
[423126759,1779870640000,-2101.0,0.00018034,2]
[423126763,1779870640000,-174.01,0.00019333,2]
[423126762,1779870640000,-99994.69549646,0.00019,2]
[423126764,1779870640000,-580.73,0.00019742,2]
[423126766,1779870640000,-251.13945625,0.00019917,2]
[423126773,1779870640000,-580.73,0.00021935,2]
[423126770,1779870640000,-174.01,0.00021174,2]
[423126761,1779870640000,-150.0,0.00018564,2]
[423126828,1779870641000,-418.2512123,0.00028922,2]
[423126830,1779870641000,-150.0,0.00029,2]
[423126822,1779870641000,-1281.43,0.000277,14]
[423126823,1779870641000,-162.24757523,0.00028,60]
[423126825,1779870641000,-150.0,0.00028745,2]
[423126817,1779870641000,-163.227334,0.0002744,14]
[423126820,1779870641000,-181.0,0.000275,7]
[423126824,1779870641000,-174.01,0.0002854,2]
[423126816,1779870641000,-4641.34,0.00027397,10]
[423126827,1779870641000,-173.79,0.00028823,30]
[423126829,1779870641000,-500.0,0.00028932,2]
[423126818,1779870641000,-181.0,0.000275,7]
[423126821,1779870641000,-174.01,0.00027619,2]
[423126839,1779870641000,-1000.0,0.00030137,10]
[423126832,1779870641000,-401.67,0.00029,2]
[423126843,1779870641000,-935.0,0.00030137,10]
[423126831,1779870641000,-8150.50986,0.00029,120]
[423126842,1779870641000,-1000.0,0.00030137,10]
[423126833,1779870641000,-174.01,0.0002946,2]
[423126835,1779870641000,-4773.12608269,0.00030135,120]
[423126834,1779870641000,-330.58323694,0.0003,120]
[423126836,1779870641000,-1000.0,0.00030137,10]
[423126841,1779870641000,-1000.0,0.00030137,10]
[423126840,1779870641000,-1000.0,0.00030137,10]
[423126805,1779870641000,-400.63341878,0.000268,2]
[423126837,1779870641000,-1000.0,0.00030137,10]
[423126838,1779870641000,-1000.0,0.00030137,10]
[423126845,1779870641000,-150.0,0.00030363,2]
[423126826,1779870641000,-21277.44,0.00028808,2]
[423126812,1779870641000,-2054.67382843,0.00027131,2]
[423126798,1779870641000,-384.18534949,0.000265,2]
[423126806,1779870641000,-384.18534949,0.00027,2]
[423126848,1779870641000,-200.0,0.00030687,2]
[423126790,1779870641000,-160.0,0.00025984,2]
[423126791,1779870641000,-384.18534949,0.00026,2]
[423126783,1779870641000,-173.03,0.000245,7]
[423126785,1779870641000,-487.14056319,0.00025289,2]
[423126782,1779870641000,-500.0,0.0002443,2]
[423126784,1779870641000,-174.01,0.00024857,2]
[423126789,1779870641000,-7947.35,0.00025786,2]
[423126788,1779870641000,-371.34,0.00025786,2]
[423126787,1779870641000,-174.01,0.00025778,2]
[423126786,1779870641000,-288.46014155,0.00025624,2]
[423126792,1779870641000,-305.93697692,0.00026,2]
[423126796,1779870641000,-305.93697692,0.000262,2]
[423126793,1779870641000,-400.63341878,0.00026,2]
[423126803,1779870641000,-384.18534949,0.000268,2]
[423126799,1779870641000,-305.93697692,0.000265,2]
[423126797,1779870641000,-400.63341878,0.000262,2]
[423126795,1779870641000,-384.18534949,0.000262,2]
[423126794,1779870641000,-460.07722895,0.00026,10]
[423126801,1779870641000,-174.01,0.00026698,2]
[423126800,1779870641000,-400.63341878,0.000265,2]
[423126802,1779870641000,-181.0,0.000267,7]
[423126804,1779870641000,-305.93697692,0.000268,2]
[423126815,1779870641000,-5569.61,0.00027397,10]